fUSD/lending_fUSD_20241030
["ID","MTS","AMOUNT","RATE_DAILY","PERIOD"]
[341071925,1730332240353,-478.75263346,0.0004238,2]
[341071926,1730332240372,-13633.77304795,0.0004238,2]
[341071928,1730332242923,-347.35582032,0.00042373,10]
[341071929,1730332242932,-24453.71974143,0.0004238,2]
[341071931,1730332243002,-2407.72736414,0.0004238,2]
[341071932,1730332243080,-2601.18779003,0.0004238,2]
[341071945,1730332245967,-16883.6848,0.0004228,2]
[341071946,1730332245977,-24208.39357527,0.0004238,2]
[341071947,1730332245987,-344.882047,0.0004238,120]
[341071948,1730332245996,-5194.8767913,0.00042387,2]
[341071949,1730332246007,-16441.4127881,0.00042971,2]
[341071950,1730332246016,-8006.7139807,0.00043,120]
[341071951,1730332246026,-167.04,0.00043071,2]
[341071952,1730332246036,-212.13409964,0.00043253,15]
[341071953,1730332246045,-150.0,0.00043259,2]
[341071954,1730332246054,-731.02,0.00043319,2]
[341071955,1730332246061,-3217.28959015,0.000434,120]
[341071956,1730332246070,-17650.51305194,0.000435,120]
[341071957,1730332246080,-300.0,0.00043547,2]
[341071958,1730332246089,-1310.237,0.00043647,120]
[341071959,1730332246099,-1310.237,0.00043647,120]
[341071960,1730332246108,-1310.238,0.00043647,120]
[341071961,1730332246118,-1310.237,0.00043647,120]
[341071962,1730332246127,-1310.237,0.00043647,120]
[341071963,1730332246255,-157.83,0.00043668,120]
[341071964,1730332246270,-410.13458913,0.000437,120]
[341071965,1730332246283,-200.0,0.00043754,2]
[341071966,1730332246293,-200.0,0.00043763,2]
[341071967,1730332246302,-5577.64807594,0.0004379,120]
[341071968,1730332246312,-20578.0,0.00043811,30]
[341071969,1730332246322,-500.0,0.00043836,120]
[341071970,1730332246331,-432.387,0.00043836,120]
[341071971,1730332246340,-500.0,0.0004386,2]
[341071972,1730332246350,-156.0,0.0004386,7]
[341071973,1730332246361,-200.0,0.0004389,2]
[341071974,1730332246371,-1338.33,0.00043899,120]
[341071975,1730332246380,-355.09099784,0.00043979,4]
[341071976,1730332246389,-397.0,0.00044,31]
[341071977,1730332246398,-530.11,0.00044,2]
[341071978,1730332246407,-153.98,0.00044,36]
[341071979,1730332246416,-153.98,0.00044,36]
[341071980,1730332246425,-153.98,0.00044,36]
[341071981,1730332246434,-153.98,0.00044,36]
[341071982,1730332246443,-153.98,0.00044,36]
[341071983,1730332246453,-371.0,0.00044,30]
[341071984,1730332246462,-1000.0,0.00044,30]
[341071985,1730332246471,-241.0,0.00044,30]
[341071986,1730332246480,-772.70624233,0.0004406,2]
[341071987,1730332246490,-200.0,0.00044061,7]
[341071988,1730332246499,-199.5280617,0.00044094,30]
[341071989,1730332246508,-795.0,0.000441,31]
[341071990,1730332246517,-150.0,0.000441,34]
[341071991,1730332246526,-384.70982485,0.0004412,30]
[341071992,1730332246536,-700.0,0.00044124,16]
[341071993,1730332246545,-700.0,0.00044124,16]
[341071994,1730332246554,-700.0,0.00044124,16]
[341071995,1730332246563,-700.0,0.00044124,16]
[341071996,1730332246571,-700.0,0.00044124,16]
[341071997,1730332246581,-700.0,0.00044124,16]
[341071998,1730332246591,-700.0,0.00044124,16]
[341071999,1730332246599,-700.0,0.00044124,16]
[341072000,1730332246608,-700.0,0.00044124,16]
[341072001,1730332246617,-700.0,0.00044124,16]
[341072002,1730332246626,-872.93275,0.00044124,14]
[341072003,1730332246635,-292.644,0.00044124,14]
[341072004,1730332246644,-500.0,0.00044148,3]
[341072005,1730332246653,-500.0,0.00044157,3]
[341072006,1730332246662,-397.0,0.000442,31]
[341072007,1730332246671,-167.25,0.00044221,2]
[341072008,1730332246680,-217.0,0.0004425,30]
[341072009,1730332246689,-400.0,0.00044253,90]
[341072010,1730332246698,-500.0,0.00044253,30]
[341072011,1730332246707,-500.0,0.00044253,30]
[341072012,1730332246717,-500.0,0.00044253,30]
[341072013,1730332246726,-500.0,0.00044253,30]
[341072014,1730332246735,-521.89118043,0.00044253,30]
[341072015,1730332246744,-500.0,0.00044253,30]
[341072016,1730332246754,-500.0,0.00044253,30]
[341072017,1730332246763,-500.0,0.00044253,30]
[341072018,1730332246772,-500.0,0.00044253,30]
[341072019,1730332246782,-500.0,0.00044253,30]
[341072020,1730332246791,-478.31756799,0.00044253,30]
[341072021,1730332246800,-519.61002271,0.00044253,30]
[341072022,1730332246809,-500.0,0.00044253,30]
[341072023,1730332246818,-507.44994876,0.00044253,30]
[341072024,1730332246827,-500.0,0.00044253,30]
[341072025,1730332246836,-500.0,0.00044253,30]
[341072026,1730332246845,-153.06780342,0.00044253,30]
[341072027,1730332246855,-500.0,0.00044253,30]
[341072028,1730332246864,-500.0,0.00044253,30]
[341072029,1730332246873,-520.08045646,0.00044253,30]
[341072030,1730332246882,-500.0,0.00044253,30]
[341072031,1730332246892,-500.0,0.00044253,30]
[341072032,1730332246902,-500.0,0.00044253,30]
[341072033,1730332246911,-500.0,0.00044253,30]
[341072034,1730332246920,-270.99085232,0.00044253,30]
[341072035,1730332246929,-500.0,0.00044253,30]
[341072036,1730332246938,-500.0,0.00044253,30]
[341072037,1730332246947,-500.0,0.00044253,30]
[341072038,1730332246956,-500.0,0.00044253,30]
[341072039,1730332246966,-500.0,0.00044253,30]
[341072040,1730332246975,-312.45462938,0.00044253,30]
[341072041,1730332246984,-500.0,0.00044253,30]
[341072042,1730332246993,-500.0,0.00044253,30]
[341072043,1730332247002,-508.94423222,0.00044253,30]
[341072044,1730332247011,-500.0,0.00044253,30]
[341072045,1730332247020,-500.0,0.00044253,30]
[341072046,1730332247029,-500.0,0.00044253,30]
[341072047,1730332247038,-506.89462912,0.00044253,30]
[341072048,1730332247048,-500.0,0.00044253,30]
[341072049,1730332247058,-500.6142965,0.00044253,30]
[341072050,1730332247068,-500.0,0.00044253,30]
[341072051,1730332247078,-500.0,0.00044253,30]
[341072052,1730332247087,-500.0,0.00044253,30]
[341072053,1730332247096,-500.0,0.00044253,30]
[341072054,1730332247105,-500.0,0.00044253,30]
[341072055,1730332247114,-500.0,0.00044253,30]
[341072056,1730332247123,-500.0,0.00044253,30]
[341072057,1730332247132,-500.0,0.00044253,30]
[341072058,1730332247142,-500.0,0.00044253,30]
[341072059,1730332247151,-500.0,0.00044253,30]
[341072060,1730332247160,-500.0,0.00044253,30]
[341072061,1730332247169,-500.0,0.00044253,30]
[341072062,1730332247178,-500.0,0.00044253,30]
[341072063,1730332247187,-500.0,0.00044253,30]
[341072064,1730332247196,-500.0,0.00044253,30]
[341072065,1730332247205,-500.0,0.00044253,30]
[341072066,1730332247214,-500.0,0.00044253,30]
[341072067,1730332247223,-500.0,0.00044253,30]
[341072068,1730332247232,-500.0,0.00044253,30]
[341072069,1730332247242,-500.0,0.00044253,30]
[341072070,1730332247251,-500.0,0.00044253,30]
[341072071,1730332247260,-196.56723821,0.00044253,30]
[341072072,1730332247269,-526.15213869,0.00044253,30]
[341072073,1730332247283,-500.0,0.00044253,30]
[341072074,1730332247294,-500.0,0.00044253,30]
[341072075,1730332247304,-500.0,0.00044253,30]
[341072076,1730332247316,-500.0,0.00044253,30]
[341072077,1730332247326,-461.74,0.00044253,30]
[341072078,1730332247335,-500.0,0.00044253,30]
[341072079,1730332247345,-500.0,0.00044253,30]
[341072080,1730332247355,-500.0,0.00044253,30]
[341072081,1730332247365,-500.0,0.00044253,30]
[341072082,1730332247375,-562.44013995,0.00044253,30]
[341072083,1730332247384,-550.58872736,0.00044253,30]
[341072084,1730332247393,-302.71268131,0.00044253,30]
[341072085,1730332247402,-524.64047403,0.00044253,30]
[341072086,1730332247411,-500.0,0.00044253,30]
[341072087,1730332247420,-500.0,0.00044253,30]
[341072088,1730332247429,-500.0,0.00044253,30]
[341072089,1730332247438,-452.02967537,0.00044253,30]
[341072090,1730332247447,-500.0,0.00044253,30]
[341072091,1730332247456,-500.0,0.00044253,30]
[341072092,1730332247466,-500.0,0.00044253,30]
[341072093,1730332247476,-500.0,0.00044253,30]
[341072094,1730332247485,-500.0,0.00044253,30]
[341072095,1730332247495,-500.0,0.00044253,30]
[341072096,1730332247504,-500.0,0.00044253,30]
[341072097,1730332247514,-500.0,0.00044253,30]
[341072098,1730332247523,-514.51812553,0.00044253,30]
[341072099,1730332247532,-500.0,0.00044253,30]
[341072100,1730332247541,-500.0,0.00044253,30]
[341072101,1730332247550,-500.0,0.00044253,30]
[341072102,1730332247560,-500.0,0.00044253,30]
[341072103,1730332247569,-523.55060239,0.00044253,30]
[341072104,1730332247579,-500.0,0.00044253,30]
[341072105,1730332247589,-500.0,0.00044253,30]
[341072106,1730332247598,-496.29,0.00044253,30]
[341072107,1730332247607,-500.0,0.00044253,30]
[341072108,1730332247616,-506.92683254,0.00044253,30]
[341072109,1730332247626,-500.0,0.00044253,30]
[341072110,1730332247635,-500.0,0.00044253,30]
[341072111,1730332247644,-577.42884664,0.00044253,30]
[341072112,1730332247654,-500.0,0.00044253,30]
[341072113,1730332247664,-500.0,0.00044253,30]
[341072114,1730332247673,-522.43217153,0.00044253,30]
[341072115,1730332247683,-523.23403798,0.00044253,30]
[341072116,1730332247692,-516.06969072,0.00044253,30]
[341072117,1730332247701,-500.0,0.00044253,30]
[341072118,1730332247711,-500.0,0.00044253,30]
[341072119,1730332247720,-500.0,0.00044253,30]
[341072120,1730332247730,-393.93801487,0.00044253,30]
[341072121,1730332247739,-531.46685329,0.00044253,30]
[341072122,1730332247748,-568.48950206,0.00044253,30]
[341072123,1730332247757,-500.0,0.00044253,30]
[341072124,1730332247767,-506.36846555,0.00044253,30]
[341072125,1730332247776,-556.47004689,0.00044253,30]
[341072126,1730332247786,-519.95817441,0.00044253,30]
[341072127,1730332247795,-500.0,0.00044253,30]
[341072128,1730332247805,-500.0,0.00044253,30]
[341072129,1730332247814,-500.0,0.00044253,30]
[341072130,1730332247824,-581.02754393,0.00044253,30]
[341072131,1730332247833,-500.0,0.00044253,30]
[341072132,1730332247843,-500.0,0.00044253,30]
[341072133,1730332247853,-508.63437159,0.00044253,30]
[341072134,1730332247862,-500.0,0.00044253,30]
[341072135,1730332247871,-500.0,0.00044253,30]
[341072136,1730332247881,-500.0,0.00044253,30]
[341072137,1730332247891,-544.47,0.00044253,30]
[341072138,1730332247900,-522.9651589,0.00044253,30]
[341072139,1730332247910,-500.0,0.00044253,30]
[341072140,1730332247920,-508.06294603,0.00044253,30]
[341072141,1730332247929,-500.0,0.00044253,30]
[341072142,1730332247938,-500.0,0.00044253,30]
[341072143,1730332247948,-500.0,0.00044253,30]
[341072144,1730332247957,-500.0,0.00044253,30]
[341072145,1730332247966,-500.0,0.00044253,30]
[341072146,1730332247975,-231.45419367,0.00044253,30]
[341072147,1730332247984,-511.2708533,0.00044253,30]
[341072148,1730332247993,-517.65964992,0.00044253,30]
[341072149,1730332248003,-500.0,0.00044253,30]
[341072150,1730332248012,-500.0,0.00044253,30]
[341072151,1730332248021,-631.87299134,0.00044253,30]
[341072152,1730332248031,-500.0,0.00044253,30]
[341072153,1730332248040,-607.68621142,0.00044253,30]
[341072154,1730332248049,-563.80861223,0.00044253,30]
[341072155,1730332248059,-500.0,0.00044253,30]
[341072156,1730332248068,-543.48098776,0.00044253,30]
[341072157,1730332248078,-511.2536474,0.00044253,30]
[341072158,1730332248088,-543.20918068,0.00044253,30]
[341072159,1730332248098,-529.30159921,0.00044253,30]
[341072160,1730332248107,-510.82237409,0.00044253,30]
[341072161,1730332248117,-532.47838624,0.00044253,30]
[341072162,1730332248127,-500.0,0.00044253,30]
[341072163,1730332248136,-524.60934031,0.00044253,30]
[341072164,1730332248146,-570.25668129,0.00044253,30]
[341072165,1730332248155,-500.0,0.00044253,30]
[341072166,1730332248165,-604.00907829,0.00044253,30]
[341072167,1730332248174,-538.39255479,0.00044253,30]
[341072168,1730332248184,-611.50429669,0.00044253,30]
[341072169,1730332248193,-518.94917015,0.00044253,30]
[341072170,1730332248203,-556.10155995,0.00044253,30]
[341072171,1730332248212,-540.51131207,0.00044253,30]
[341072172,1730332248221,-522.64452339,0.00044253,30]
[341072173,1730332248231,-500.0,0.00044253,30]
[341072174,1730332248240,-500.0,0.00044253,30]
[341072175,1730332248249,-359.48469899,0.00044253,30]
[341072176,1730332248259,-500.0,0.00044253,30]
[341072177,1730332248269,-500.0,0.00044253,30]
[341072178,1730332248279,-525.20676086,0.00044253,30]
[341072179,1730332248290,-500.0,0.00044253,30]
[341072180,1730332248300,-523.8917811,0.00044253,30]
[341072181,1730332248310,-500.0,0.00044253,30]
[341072182,1730332248319,-500.0,0.00044253,30]
[341072183,1730332248331,-539.10459495,0.00044253,30]
[341072184,1730332248340,-511.03621205,0.00044253,30]
[341072185,1730332248350,-516.78382194,0.00044253,30]
[341072186,1730332248361,-500.0,0.00044253,30]
[341072187,1730332248370,-529.25352927,0.00044253,30]
[341072188,1730332248380,-500.0,0.00044253,30]
[341072189,1730332248389,-500.0,0.00044253,30]
[341072190,1730332248399,-500.0,0.00044253,30]
[341072191,1730332248408,-500.0,0.00044253,30]
[341072192,1730332248418,-500.0,0.00044253,2]
[341072193,1730332248427,-500.0,0.00044253,30]
[341072194,1730332248437,-500.0,0.00044253,30]
[341072195,1730332248447,-2173.25,0.00044253,30]
[341072196,1730332248456,-2173.25,0.00044253,30]
[341072197,1730332248466,-2173.25,0.00044253,30]
[341072198,1730332248475,-2173.25,0.00044253,30]
[341072199,1730332248484,-2173.25,0.00044253,30]
[341072200,1730332248494,-2173.25,0.00044253,30]
[341072201,1730332248503,-2173.25,0.00044253,30]
[341072202,1730332248512,-2173.25,0.00044253,30]
[341072203,1730332248522,-2173.25,0.00044253,30]
[341072204,1730332248532,-2173.25,0.00044253,30]
[341072205,1730332248542,-2173.25,0.00044253,30]
[341072206,1730332248551,-2173.25,0.00044253,30]
[341072207,1730332248560,-2173.25,0.00044253,30]
[341072208,1730332248570,-2173.25,0.00044253,30]
[341072209,1730332248583,-2173.25,0.00044253,30]
[341072210,1730332248592,-2173.25,0.00044253,30]
[341072211,1730332248602,-2173.25,0.00044253,30]
[341072212,1730332248611,-2173.25,0.00044253,30]
[341072213,1730332248621,-2173.25,0.00044253,30]
[341072214,1730332248630,-2173.25,0.00044253,30]
[341072215,1730332248639,-500.0,0.00044253,7]
[341072216,1730332248648,-2173.25,0.00044253,30]
[341072217,1730332248658,-2173.25,0.00044253,30]
[341072218,1730332248667,-2173.25,0.00044253,30]
[341072219,1730332248677,-2173.44078032,0.00044253,30]
[341072220,1730332248687,-500.0,0.00044253,30]
[341072221,1730332248696,-500.0,0.00044253,30]
[341072222,1730332248706,-500.0,0.00044253,30]
[341072223,1730332248715,-500.0,0.00044253,30]
[341072224,1730332248725,-500.0,0.00044253,30]
[341072225,1730332248735,-500.0,0.00044253,30]
[341072226,1730332248744,-500.0,0.00044253,30]
[341072227,1730332248754,-500.0,0.00044253,30]
[341072228,1730332248762,-519.8894356,0.00044253,30]
[341072229,1730332248772,-542.16516474,0.00044253,30]
[341072230,1730332248781,-500.0,0.00044253,30]
[341072231,1730332248791,-500.0,0.00044253,30]
[341072232,1730332248800,-500.0,0.00044253,30]
[341072233,1730332248809,-500.0,0.00044253,30]
[341072234,1730332248819,-500.0,0.00044253,30]
[341072235,1730332248830,-500.0,0.00044253,30]
[341072236,1730332248839,-500.0,0.00044253,30]
[341072237,1730332248849,-500.0,0.00044253,30]
[341072238,1730332248858,-190.93998976,0.00044253,30]
[341072239,1730332248867,-500.0,0.00044253,7]
[341072240,1730332248876,-500.0,0.00044253,7]
[341072241,1730332248886,-500.0,0.00044253,7]
[341072242,1730332248895,-500.0,0.00044253,7]
[341072243,1730332248905,-500.0,0.00044253,7]
[341072244,1730332248915,-500.0,0.00044253,7]
[341072245,1730332248924,-500.0,0.00044253,7]
[341072246,1730332248934,-170.9905647,0.00044253,30]
[341072247,1730332248945,-607.80794867,0.00044253,30]
[341072248,1730332248955,-500.0,0.00044253,7]
[341072249,1730332248965,-500.0,0.00044253,7]
[341072250,1730332248975,-500.0,0.00044253,7]
[341072251,1730332248986,-500.0,0.00044253,7]
[341072252,1730332248996,-500.0,0.00044253,7]
[341072253,1730332249005,-500.0,0.00044253,7]
[341072254,1730332249015,-500.0,0.00044253,7]
[341072255,1730332249024,-500.0,0.00044253,7]
[341072256,1730332249034,-627.3746245,0.00044253,7]
[341072257,1730332249043,-500.0,0.00044253,30]
[341072258,1730332249052,-500.0,0.00044253,30]
[341072259,1730332249061,-500.0,0.00044253,30]
[341072260,1730332249071,-500.0,0.00044253,30]
[341072261,1730332249081,-500.0,0.00044253,30]
[341072262,1730332249091,-500.0,0.00044253,30]
[341072263,1730332249101,-436.99227828,0.00044253,30]
[341072264,1730332249110,-500.0,0.00044253,30]
[341072265,1730332249120,-500.0,0.00044253,30]
[341072266,1730332249129,-206.85587509,0.00044253,30]
[341072267,1730332249139,-500.0,0.00044253,30]
[341072268,1730332249149,-304.54001188,0.00044253,30]
[341072269,1730332249159,-641.19002934,0.00044253,30]
[341072270,1730332249168,-557.82721221,0.00044253,30]
[341072271,1730332249178,-508.30157986,0.00044253,30]
[341072272,1730332249187,-500.0,0.00044253,30]
[341072273,1730332249197,-340.99915929,0.00044253,30]
[341072274,1730332249206,-500.0,0.00044253,30]
[341072275,1730332249216,-500.0,0.00044253,30]
[341072276,1730332249226,-500.0,0.00044253,30]
[341072277,1730332249235,-500.0,0.00044253,30]
[341072278,1730332249244,-500.0,0.00044253,30]
[341072279,1730332249254,-500.0,0.00044253,30]
[341072280,1730332249264,-500.0,0.00044253,30]
[341072281,1730332249273,-500.0,0.00044253,30]
[341072282,1730332249287,-500.0,0.00044253,30]
[341072283,1730332249297,-500.0,0.00044253,30]
[341072284,1730332249306,-500.0,0.00044253,30]
[341072285,1730332249316,-155.27684413,0.00044253,30]
[341072286,1730332249325,-534.92078072,0.00044253,30]
[341072287,1730332249334,-500.0,0.00044253,30]
[341072288,1730332249344,-500.0,0.00044253,30]
[341072289,1730332249454,-500.0,0.00044253,30]
[341072290,1730332249465,-500.0,0.00044253,30]
[341072291,1730332249476,-500.0,0.00044253,30]
[341072292,1730332249485,-262.52,0.00044253,30]
[341072293,1730332249495,-555.53506109,0.00044253,30]
[341072294,1730332249505,-500.0,0.00044253,30]
[341072295,1730332249515,-500.0,0.00044253,30]
[341072296,1730332249524,-500.0,0.00044253,30]
[341072297,1730332249534,-500.0,0.00044253,30]
[341072298,1730332249543,-500.0,0.00044253,30]
[341072299,1730332249552,-500.0,0.00044253,30]
[341072300,1730332249562,-500.0,0.00044253,30]
[341072301,1730332249571,-462.01791324,0.00044253,30]
[341072302,1730332249581,-641.59,0.00044253,30]
[341072303,1730332249591,-500.0,0.00044253,30]
[341072304,1730332249600,-500.0,0.00044253,30]
[341072305,1730332249609,-641.59,0.00044253,30]
[341072306,1730332249618,-500.0,0.00044253,30]
[341072307,1730332249628,-641.59,0.00044253,30]
[341072308,1730332249637,-500.0,0.00044253,30]
[341072309,1730332249646,-641.59,0.00044253,30]
[341072310,1730332249656,-500.0,0.00044253,30]
[341072311,1730332249666,-641.59,0.00044253,30]
[341072312,1730332249676,-500.0,0.00044253,30]
[341072313,1730332249686,-641.59,0.00044253,30]
[341072314,1730332249695,-272.31779393,0.00044253,30]
[341072315,1730332249704,-641.59,0.00044253,30]
[341072316,1730332249713,-641.59,0.00044253,30]
[341072317,1730332249723,-641.59,0.00044253,30]
[341072318,1730332249733,-641.59,0.00044253,30]
[341072319,1730332249742,-641.59,0.00044253,30]
[341072320,1730332249752,-641.59,0.00044253,30]
[341072321,1730332249762,-641.59,0.00044253,30]
[341072322,1730332249772,-641.59,0.00044253,30]
[341072323,1730332249782,-641.59,0.00044253,30]
[341072324,1730332249791,-641.59,0.00044253,30]
[341072325,1730332249801,-641.59,0.00044253,30]
[341072326,1730332249811,-641.59,0.00044253,30]
[341072327,1730332249820,-641.59,0.00044253,30]
[341072328,1730332249830,-641.59,0.00044253,30]
[341072329,1730332249840,-641.59,0.00044253,30]
[341072330,1730332249849,-641.59,0.00044253,30]
[341072331,1730332249859,-641.59,0.00044253,30]
[341072332,1730332249869,-641.7642,0.00044253,30]
[341072333,1730332249879,-500.0,0.00044253,30]
[341072334,1730332249888,-500.0,0.00044253,30]
[341072335,1730332249898,-500.0,0.00044253,30]
[341072336,1730332249907,-500.0,0.00044253,30]
[341072337,1730332249916,-500.0,0.00044253,30]
[341072338,1730332249925,-500.0,0.00044253,30]
[341072339,1730332249935,-500.0,0.00044253,30]
[341072340,1730332249944,-458.37472955,0.00044253,30]
[341072341,1730332249953,-500.0,0.00044253,30]
[341072342,1730332249963,-238.53036385,0.00044253,30]
[341072343,1730332249972,-194.50377939,0.00044253,30]
[341072344,1730332249981,-7785.16,0.00044253,30]
[341072345,1730332249991,-7785.16,0.00044253,30]
[341072346,1730332250000,-7785.16,0.00044253,30]
[341072347,1730332250009,-7785.16,0.00044253,30]
[341072348,1730332250018,-7785.16,0.00044253,30]
[341072349,1730332250027,-7785.16,0.00044253,30]
[341072350,1730332250037,-7785.16,0.00044253,30]
[341072351,1730332250046,-7785.16,0.00044253,30]
[341072352,1730332250055,-7785.16,0.00044253,30]
[341072353,1730332250064,-542.77844391,0.00044253,30]
[341072354,1730332250073,-7785.16,0.00044253,30]
[341072355,1730332250083,-7785.16,0.00044253,30]
[341072356,1730332250092,-7785.16,0.00044253,30]
[341072357,1730332250101,-500.0,0.00044253,30]
[341072358,1730332250110,-7785.16,0.00044253,30]
[341072359,1730332250119,-7785.16,0.00044253,30]
[341072360,1730332250128,-500.0,0.00044253,30]
[341072361,1730332250137,-7785.16,0.00044253,30]
[341072362,1730332250146,-7785.16,0.00044253,30]
[341072363,1730332250155,-624.70777976,0.00044253,30]
[341072364,1730332250164,-524.86542822,0.00044253,30]
[341072365,1730332250173,-7785.16,0.00044253,30]
[341072366,1730332250182,-7785.16,0.00044253,30]
[341072367,1730332250191,-7785.16,0.00044253,30]
[341072368,1730332250200,-7785.16,0.00044253,30]
[341072369,1730332250209,-7785.16,0.00044253,30]
[341072370,1730332250218,-7785.16,0.00044253,30]
[341072371,1730332250228,-7785.16,0.00044253,30]
[341072372,1730332250237,-522.74491315,0.00044253,30]
[341072373,1730332250246,-7785.37672673,0.00044253,30]
[341072374,1730332250255,-500.0,0.00044253,30]
[341072375,1730332250264,-500.0,0.00044253,30]
[341072376,1730332250274,-500.0,0.00044253,30]
[341072377,1730332250287,-500.0,0.00044253,30]
[341072378,1730332250296,-157.62012851,0.00044253,30]
[341072379,1730332250305,-500.0,0.00044253,30]
[341072380,1730332250314,-500.0,0.00044253,30]
[341072381,1730332250324,-500.0,0.00044253,30]
[341072382,1730332250334,-500.0,0.00044253,30]
[341072383,1730332250343,-552.51620717,0.00044253,30]
[341072384,1730332250355,-636.80397345,0.00044253,30]
[341072385,1730332250365,-500.0,0.00044253,30]
[341072386,1730332250374,-500.0,0.00044253,21]
[341072387,1730332250383,-500.0,0.00044253,30]
[341072388,1730332250393,-500.0,0.00044253,21]
[341072389,1730332250402,-500.0,0.00044253,30]
[341072390,1730332250411,-500.0,0.00044253,21]
[341072391,1730332250420,-576.48,0.00044253,30]
[341072392,1730332250430,-500.0,0.00044253,21]
[341072393,1730332250439,-500.0,0.00044253,21]
[341072394,1730332250448,-500.0,0.00044253,21]
[341072395,1730332250458,-500.0,0.00044253,21]
[341072396,1730332250467,-500.0,0.00044253,21]
[341072397,1730332250477,-500.0,0.00044253,21]
[341072398,1730332250486,-500.0,0.00044253,21]
[341072399,1730332250495,-500.0,0.00044253,21]
[341072400,1730332250505,-500.0,0.00044253,21]
[341072401,1730332250514,-500.0,0.00044253,21]
[341072402,1730332250523,-533.71229219,0.00044253,21]
[341072403,1730332250533,-500.0,0.00044253,30]
[341072404,1730332250542,-1000.0,0.00044253,120]
[341072405,1730332250551,-1000.0,0.00044253,120]
[341072406,1730332250560,-1000.0,0.00044253,120]
[341072407,1730332250570,-500.0,0.00044253,30]
[341072408,1730332250579,-1000.0,0.00044253,120]
[341072409,1730332250589,-567.62,0.00044253,30]
[341072410,1730332250598,-1000.0,0.00044253,120]
[341072411,1730332250608,-1000.0,0.00044253,120]
[341072412,1730332250617,-1000.0,0.00044253,120]
[341072413,1730332250626,-636.02,0.00044253,30]
[341072414,1730332250636,-791.81806947,0.00044253,120]
[341072415,1730332250646,-636.02,0.00044253,30]
[341072416,1730332250656,-636.02,0.00044253,30]
[341072417,1730332250665,-500.0,0.00044253,30]
[341072418,1730332250674,-636.02,0.00044253,30]
[341072419,1730332250684,-500.0,0.00044253,30]
[341072420,1730332250693,-636.02,0.00044253,30]
[341072421,1730332250702,-500.0,0.00044253,30]
[341072422,1730332250712,-636.02,0.00044253,30]
[341072423,1730332250721,-500.0,0.00044253,30]
[341072424,1730332250730,-636.02,0.00044253,30]
[341072425,1730332250740,-500.0,0.00044253,30]
[341072426,1730332250750,-636.02,0.00044253,30]
[341072427,1730332250759,-500.0,0.00044253,30]
[341072428,1730332250769,-500.0,0.00044253,30]
[341072429,1730332250778,-636.02,0.00044253,30]
[341072430,1730332250788,-283.70111018,0.00044253,30]
[341072431,1730332250797,-636.02,0.00044253,30]
[341072432,1730332250807,-636.02,0.00044253,30]
[341072433,1730332250816,-500.0,0.00044253,30]
[341072434,1730332250826,-636.02,0.00044253,30]
[341072435,1730332250836,-500.0,0.00044253,30]
[341072436,1730332250845,-464.30277476,0.00044253,30]
[341072437,1730332250854,-636.02,0.00044253,30]
[341072438,1730332250864,-636.02,0.00044253,30]